[Event "Titled Tuesday Blitz May 9 Early 2023"]
[White "WindWhistler11"]
[Black "Frolyanov, Dmitry"]
[BlackFideId "4151976"]
[WhiteElo "2493"]
[BlackElo "2395"]
[Result "1-0"]
[Round "10"]
[TimeControl "180+2"]
[Date "2023.05.09"]
[WhiteClock "0:01:13"]
[BlackClock "0:00:27"]

1. Nf3 {[%clk 0:02:55]}  Nf6 {[%clk 0:02:59]} 2. g3 {[%clk 0:02:55]}  b6 {[%clk 0:02:59]} 3. Bg2 {[%clk 0:02:56]}  Bb7 {[%clk 0:02:59]} 4. c4 {[%clk 0:02:56]}  e5 {[%clk 0:02:57]} 5. O-O {[%clk 0:02:56]}  e4 {[%clk 0:02:57]} 6. Ne1 {[%clk 0:02:56]}  Bc5 {[%clk 0:02:52]} 7. Nc3 {[%clk 0:02:55]}  O-O {[%clk 0:02:50]} 8. Nc2 {[%clk 0:02:53]}  Re8 {[%clk 0:02:44]} 9. b4 {[%clk 0:02:47]}  Bf8 {[%clk 0:02:43]} 10. a3 {[%clk 0:02:47]}  Nc6 {[%clk 0:02:33]} 11. Bb2 {[%clk 0:02:44]}  Ne5 {[%clk 0:02:31]} 12. Ne3 {[%clk 0:02:41]}  a5 {[%clk 0:02:18]} 13. b5 {[%clk 0:02:04]}  Bc5 {[%clk 0:02:17]} 14. d4 {[%clk 0:01:57]}  exd3 {[%clk 0:02:07]} 15. Bxb7 {[%clk 0:01:57]}  Bxe3 {[%clk 0:02:05]} 16. Bxa8 {[%clk 0:01:40]}  Nxc4 {[%clk 0:02:05]} 17. Bf3 {[%clk 0:01:28]}  Nxb2 {[%clk 0:01:53]} 18. Qb3 {[%clk 0:01:27]}  dxe2 {[%clk 0:01:53]} 19. Nxe2 {[%clk 0:01:20]}  Bc5 {[%clk 0:00:45]} 20. Qxb2 {[%clk 0:01:19]}  d5 {[%clk 0:00:46]} 21. Rad1 {[%clk 0:01:18]}  Qe7 {[%clk 0:00:27]} 22. Nf4 {[%clk 0:01:13]} 1-0


[Site "https://www.chess.com"]

[Event "Titled Tuesday Blitz May 9 Early 2023"]
[White "Nikologorskiy, Konstantin"]
[Black "Ljukin, Sergei"]
[WhiteFideId "24111708"]
[BlackFideId "14102200"]
[WhiteElo "2273"]
[BlackElo "2312"]
[Result "1-0"]
[Round "10"]
[TimeControl "180+2"]
[Date "2023.05.09"]
[WhiteClock "0:00:06"]
[BlackClock "0:00:00"]

1. d4 {[%clk 0:03:00]}  d5 {[%clk 0:02:49]} 2. c4 {[%clk 0:03:01]}  c6 {[%clk 0:02:49]} 3. Nf3 {[%clk 0:03:01]}  Nf6 {[%clk 0:02:49]} 4. Nc3 {[%clk 0:03:02]}  dxc4 {[%clk 0:02:49]} 5. a4 {[%clk 0:03:01]}  Bf5 {[%clk 0:02:49]} 6. e3 {[%clk 0:02:59]}  e6 {[%clk 0:02:48]} 7. Bxc4 {[%clk 0:02:59]}  Bb4 {[%clk 0:02:49]} 8. O-O {[%clk 0:02:59]}  Nbd7 {[%clk 0:02:49]} 9. Qe2 {[%clk 0:02:58]}  O-O {[%clk 0:02:49]} 10. e4 {[%clk 0:02:51]}  Bg4 {[%clk 0:02:49]} 11. Bg5 {[%clk 0:02:48]}  Qa5 {[%clk 0:02:41]} 12. Qe3 {[%clk 0:02:34]}  Bxf3 {[%clk 0:02:21]} 13. gxf3 {[%clk 0:02:35]}  e5 {[%clk 0:02:21]} 14. dxe5 {[%clk 0:02:06]}  Nxe5 {[%clk 0:02:15]} 15. Be2 {[%clk 0:02:07]}  Bc5 {[%clk 0:01:59]} 16. Qf4 {[%clk 0:02:01]}  Ng6 {[%clk 0:01:58]} 17. Qg3 {[%clk 0:01:59]}  Be7 {[%clk 0:01:50]} 18. Be3 {[%clk 0:01:38]}  Nh5 {[%clk 0:01:32]} 19. Qg4 {[%clk 0:01:38]}  Bd6 {[%clk 0:01:32]} 20. Nb5 {[%clk 0:01:13]}  cxb5 {[%clk 0:00:28]} 21. Qxh5 {[%clk 0:01:11]}  Nf4 {[%clk 0:00:25]} 22. Bxf4 {[%clk 0:00:52]}  Bxf4 {[%clk 0:00:24]} 23. Bxb5 {[%clk 0:00:46]}  a6 {[%clk 0:00:16]} 24. Qg4 {[%clk 0:00:32]}  Qc7 {[%clk 0:00:15]} 25. Bd3 {[%clk 0:00:27]}  Qe5 {[%clk 0:00:11]} 26. Kh1 {[%clk 0:00:20]}  Rad8 {[%clk 0:00:11]} 27. Rad1 {[%clk 0:00:18]}  Rd6 {[%clk 0:00:10]} 28. Bc2 {[%clk 0:00:14]}  Rh6 {[%clk 0:00:09]} 29. h4 {[%clk 0:00:03]}  Qf6 {[%clk 0:00:08]} 30. Kg2 {[%clk 0:00:02]}  Rxh4 {[%clk 0:00:07]} 31. Qf5 {[%clk 0:00:02]}  Qe7 {[%clk 0:00:05]} 32. Rh1 {[%clk 0:00:03]}  Rxh1 {[%clk 0:00:04]} 33. Rxh1 {[%clk 0:00:03]}  g6 {[%clk 0:00:05]} 34. Qxf4 {[%clk 0:00:04]}  Rd8 {[%clk 0:00:05]} 35. Qh4 {[%clk 0:00:04]}  Qxh4 {[%clk 0:00:02]} 36. Rxh4 {[%clk 0:00:05]}  Rd2 {[%clk 0:00:02]} 37. Bb3 {[%clk 0:00:04]}  Rxb2 {[%clk 0:00:02]} 38. Bd5 {[%clk 0:00:05]}  Rb4 {[%clk 0:00:02]} 39. Rf4 {[%clk 0:00:05]}  Rxa4 {[%clk 0:00:01]} 40. Rxf7 {[%clk 0:00:05]}  Kh8 {[%clk 0:00:01]} 41. Rxb7 {[%clk 0:00:06]}  Rb4 {[%clk 0:00:00]} 42. Rxb4 {[%clk 0:00:06]} 1-0


[Site "https://www.chess.com"]

[Event "Titled Tuesday Blitz May 9 Early 2023"]
[White "Arat, Ufuk Sezen"]
[Black "Sharapov, Evgeny"]
[WhiteFideId "6309089"]
[BlackFideId "14103133"]
[WhiteElo "2289"]
[BlackElo "2367"]
[Result "0-1"]
[Round "10"]
[TimeControl "180+2"]
[Date "2023.05.09"]
[WhiteClock "0:00:06"]
[BlackClock "0:00:35"]

1. e4 {[%clk 0:02:57]}  c5 {[%clk 0:02:59]} 2. Nf3 {[%clk 0:02:56]}  d6 {[%clk 0:03:00]} 3. d4 {[%clk 0:02:57]}  cxd4 {[%clk 0:02:59]} 4. Nxd4 {[%clk 0:02:58]}  Nf6 {[%clk 0:02:59]} 5. Nc3 {[%clk 0:02:58]}  Nc6 {[%clk 0:02:59]} 6. Bg5 {[%clk 0:02:59]}  e6 {[%clk 0:02:59]} 7. Qd2 {[%clk 0:03:00]}  Be7 {[%clk 0:03:00]} 8. O-O-O {[%clk 0:03:00]}  O-O {[%clk 0:03:00]} 9. f4 {[%clk 0:03:01]}  Nxd4 {[%clk 0:03:00]} 10. Qxd4 {[%clk 0:03:01]}  Qa5 {[%clk 0:03:00]} 11. Kb1 {[%clk 0:02:59]}  Rd8 {[%clk 0:03:00]} 12. Be2 {[%clk 0:02:57]}  Bd7 {[%clk 0:03:00]} 13. Bf3 {[%clk 0:02:57]}  Bc6 {[%clk 0:02:59]} 14. Rhe1 {[%clk 0:02:52]}  h6 {[%clk 0:02:58]} 15. Bh4 {[%clk 0:02:50]}  d5 {[%clk 0:02:39]} 16. e5 {[%clk 0:02:36]}  Bc5 {[%clk 0:02:38]} 17. Qd3 {[%clk 0:02:35]}  d4 {[%clk 0:02:14]} 18. Bxc6 {[%clk 0:02:25]}  dxc3 {[%clk 0:02:13]} 19. Qxc3 {[%clk 0:01:01]}  Bb4 {[%clk 0:02:04]} 20. Qg3 {[%clk 0:01:02]}  Bxe1 {[%clk 0:01:58]} 21. Rxe1 {[%clk 0:01:00]}  Nh5 {[%clk 0:01:37]} 22. Qe3 {[%clk 0:00:39]}  bxc6 {[%clk 0:01:32]} 23. Bxd8 {[%clk 0:00:38]}  Rxd8 {[%clk 0:01:31]} 24. a3 {[%clk 0:00:29]}  Qd2 {[%clk 0:01:27]} 25. Qe4 {[%clk 0:00:23]}  Nxf4 {[%clk 0:01:19]} 26. Rf1 {[%clk 0:00:22]}  Ng6 {[%clk 0:01:07]} 27. Qxc6 {[%clk 0:00:23]}  Nxe5 {[%clk 0:00:59]} 28. Qc7 {[%clk 0:00:23]}  Qd6 {[%clk 0:00:58]} 29. Qxa7 {[%clk 0:00:23]}  Rd7 {[%clk 0:00:52]} 30. Qa8+ {[%clk 0:00:22]}  Kh7 {[%clk 0:00:52]} 31. g4 {[%clk 0:00:20]}  Qd4 {[%clk 0:00:43]} 32. h3 {[%clk 0:00:16]}  Nc4 {[%clk 0:00:42]} 33. c3 {[%clk 0:00:06]}  Qd3+ {[%clk 0:00:41]} 34. Ka2 {[%clk 0:00:07]}  Qxf1 {[%clk 0:00:38]} 35. Qe4+ {[%clk 0:00:06]}  g6 {[%clk 0:00:35]} 0-1


[Site "https://www.chess.com"]

[Event "Titled Tuesday Blitz May 9 Early 2023"]
[White "Rom, Jasper"]
[Black "Lorenzo De La Riva, Lazaro"]
[WhiteFideId "2023733"]
[BlackFideId "2268809"]
[WhiteElo "2233"]
[BlackElo "2294"]
[Result "0-1"]
[Round "10"]
[TimeControl "180+2"]
[Date "2023.05.09"]
[WhiteClock "0:00:00"]
[BlackClock "0:00:19"]

1. e4 {[%clk 0:02:55]}  c5 {[%clk 0:02:57]} 2. Nc3 {[%clk 0:02:55]}  Nc6 {[%clk 0:02:55]} 3. f4 {[%clk 0:02:55]}  g6 {[%clk 0:02:53]} 4. Nf3 {[%clk 0:02:55]}  Bg7 {[%clk 0:02:53]} 5. Bb5 {[%clk 0:02:55]}  Nd4 {[%clk 0:02:51]} 6. O-O {[%clk 0:02:55]}  Nxb5 {[%clk 0:02:09]} 7. Nxb5 {[%clk 0:02:54]}  d5 {[%clk 0:02:08]} 8. d3 {[%clk 0:02:54]}  a6 {[%clk 0:01:48]} 9. Nc3 {[%clk 0:02:54]}  d4 {[%clk 0:01:42]} 10. Ne2 {[%clk 0:02:46]}  e6 {[%clk 0:01:42]} 11. Ng3 {[%clk 0:02:31]}  Ne7 {[%clk 0:01:40]} 12. Bd2 {[%clk 0:02:24]}  b6 {[%clk 0:01:38]} 13. Qe2 {[%clk 0:02:24]}  Bb7 {[%clk 0:01:35]} 14. Rae1 {[%clk 0:02:24]}  f6 {[%clk 0:01:14]} 15. c3 {[%clk 0:01:52]}  Nc6 {[%clk 0:01:05]} 16. f5 {[%clk 0:01:48]}  e5 {[%clk 0:01:03]} 17. Nh4 {[%clk 0:01:39]}  g5 {[%clk 0:01:00]} 18. Nf3 {[%clk 0:01:28]}  Qd7 {[%clk 0:00:40]} 19. c4 {[%clk 0:01:26]}  h5 {[%clk 0:00:36]} 20. h4 {[%clk 0:00:53]}  g4 {[%clk 0:00:33]} 21. Nh2 {[%clk 0:00:51]}  O-O-O {[%clk 0:00:32]} 22. a3 {[%clk 0:00:49]}  Bf8 {[%clk 0:00:31]} 23. Rb1 {[%clk 0:00:48]}  a5 {[%clk 0:00:30]} 24. b3 {[%clk 0:00:49]}  Qf7 {[%clk 0:00:28]} 25. Rb2 {[%clk 0:00:46]}  Kc7 {[%clk 0:00:28]} 26. Rfb1 {[%clk 0:00:47]}  Ra8 {[%clk 0:00:28]} 27. Nhf1 {[%clk 0:00:46]}  Bd6 {[%clk 0:00:24]} 28. Qe1 {[%clk 0:00:45]}  Ra7 {[%clk 0:00:24]} 29. Ne2 {[%clk 0:00:39]}  Rb8 {[%clk 0:00:23]} 30. Nfg3 {[%clk 0:00:39]}  Bc8 {[%clk 0:00:23]} 31. Nc1 {[%clk 0:00:36]}  Bd7 {[%clk 0:00:22]} 32. Na2 {[%clk 0:00:37]}  b5 {[%clk 0:00:22]} 33. a4 {[%clk 0:00:19]}  bxc4 {[%clk 0:00:19]} 34. bxc4 {[%clk 0:00:19]}  Nb4 {[%clk 0:00:20]} 35. Qd1 {[%clk 0:00:09]}  Be8 {[%clk 0:00:19]} 36. Nxb4 {[%clk 0:00:02]}  axb4 {[%clk 0:00:19]} 37. Ra1 {[%clk 0:00:03]}  Rba8 {[%clk 0:00:19]} 38. Rba2 {[%clk 0:00:03]}  Ra5 {[%clk 0:00:19]} 39. Qb3 {[%clk 0:00:02]}  Qd7 {[%clk 0:00:19]} 40. Ne2 {[%clk 0:00:02]}  Rxa4 {[%clk 0:00:18]} 41. Nc1 {[%clk 0:00:02]}  Rxa2 {[%clk 0:00:18]} 42. Rxa2 {[%clk 0:00:02]}  Rxa2 {[%clk 0:00:18]} 43. Qxa2 {[%clk 0:00:02]}  Qa4 {[%clk 0:00:18]} 44. Qxa4 {[%clk 0:00:02]}  Bxa4 {[%clk 0:00:19]} 45. Kf2 {[%clk 0:00:00]}  Bc2 {[%clk 0:00:19]} 0-1


[Site "https://www.chess.com"]

[Event "Titled Tuesday Blitz May 9 Early 2023"]
[White "Fernandez Garcia, Gumersindo"]
[Black "Sousa, Andre Ventura"]
[WhiteFideId "24516740"]
[BlackFideId "1917617"]
[WhiteElo "2093"]
[BlackElo "2333"]
[Result "0-1"]
[Round "10"]
[TimeControl "180+2"]
[Date "2023.05.09"]
[WhiteClock "0:00:35"]
[BlackClock "0:01:03"]

1. e4 {[%clk 0:02:52]}  e5 {[%clk 0:02:29]} 2. Nf3 {[%clk 0:02:52]}  Nc6 {[%clk 0:02:29]} 3. d4 {[%clk 0:02:53]}  exd4 {[%clk 0:02:29]} 4. Bc4 {[%clk 0:02:52]}  Nf6 {[%clk 0:02:30]} 5. O-O {[%clk 0:02:49]}  Nxe4 {[%clk 0:02:30]} 6. Re1 {[%clk 0:02:50]}  d5 {[%clk 0:02:30]} 7. Bxd5 {[%clk 0:02:50]}  Qxd5 {[%clk 0:02:31]} 8. Nc3 {[%clk 0:02:51]}  Qd7 {[%clk 0:02:32]} 9. Nxe4 {[%clk 0:02:47]}  Be7 {[%clk 0:02:31]} 10. Nc5 {[%clk 0:02:34]}  Qd5 {[%clk 0:02:31]} 11. Nb3 {[%clk 0:02:28]}  Bg4 {[%clk 0:02:29]} 12. h3 {[%clk 0:02:12]}  Bxf3 {[%clk 0:02:29]} 13. Qxf3 {[%clk 0:02:12]}  Qxf3 {[%clk 0:02:29]} 14. gxf3 {[%clk 0:02:13]}  O-O-O {[%clk 0:02:29]} 15. Bf4 {[%clk 0:02:12]}  Bf6 {[%clk 0:02:25]} 16. Rad1 {[%clk 0:02:10]}  Nb4 {[%clk 0:02:15]} 17. Rd2 {[%clk 0:01:56]}  b6 {[%clk 0:02:03]} 18. a3 {[%clk 0:01:55]}  Nd5 {[%clk 0:02:00]} 19. Bg3 {[%clk 0:01:55]}  c5 {[%clk 0:01:57]} 20. Red1 {[%clk 0:01:53]}  Rhe8 {[%clk 0:01:47]} 21. Kf1 {[%clk 0:01:47]}  h5 {[%clk 0:01:44]} 22. h4 {[%clk 0:01:15]}  g5 {[%clk 0:01:44]} 23. c3 {[%clk 0:00:56]}  gxh4 {[%clk 0:01:42]} 24. Bh2 {[%clk 0:00:56]}  dxc3 {[%clk 0:01:13]} 25. Rxd5 {[%clk 0:00:56]}  Rxd5 {[%clk 0:01:12]} 26. Rxd5 {[%clk 0:00:56]}  cxb2 {[%clk 0:01:13]} 27. Rd1 {[%clk 0:00:53]}  Bc3 {[%clk 0:01:07]} 28. Bf4 {[%clk 0:00:35]}  Re1+ {[%clk 0:01:03]} 0-1


[Site "https://www.chess.com"]

[Event "Titled Tuesday Blitz May 9 Early 2023"]
[White "Kohler, Aran"]
[Black "Erzhanov, Arman"]
[WhiteFideId "1002856"]
[BlackFideId "4138821"]
[WhiteElo "2384"]
[BlackElo "2138"]
[Result "0-1"]
[Round "10"]
[TimeControl "180+2"]
[Date "2023.05.09"]
[WhiteClock "0:00:27"]
[BlackClock "0:00:50"]

1. e4 {[%clk 0:03:00]}  d6 {[%clk 0:02:59]} 2. d4 {[%clk 0:02:59]}  Nf6 {[%clk 0:02:59]} 3. Nc3 {[%clk 0:02:59]}  c6 {[%clk 0:02:59]} 4. a3 {[%clk 0:02:56]}  e5 {[%clk 0:02:59]} 5. dxe5 {[%clk 0:02:54]}  dxe5 {[%clk 0:02:59]} 6. Bd3 {[%clk 0:02:55]}  Qc7 {[%clk 0:02:58]} 7. h3 {[%clk 0:02:55]}  Bc5 {[%clk 0:02:58]} 8. Nf3 {[%clk 0:02:55]}  O-O {[%clk 0:02:58]} 9. O-O {[%clk 0:02:56]}  h6 {[%clk 0:02:57]} 10. b4 {[%clk 0:02:55]}  Be7 {[%clk 0:02:57]} 11. Be3 {[%clk 0:02:55]}  Be6 {[%clk 0:02:56]} 12. Na4 {[%clk 0:02:52]}  Nbd7 {[%clk 0:02:50]} 13. c4 {[%clk 0:02:52]}  Nb6 {[%clk 0:02:47]} 14. c5 {[%clk 0:02:39]}  Nc4 {[%clk 0:02:43]} 15. Bc1 {[%clk 0:02:24]}  b5 {[%clk 0:02:25]} 16. cxb6 {[%clk 0:02:23]}  axb6 {[%clk 0:02:25]} 17. Bxc4 {[%clk 0:02:05]}  Bxc4 {[%clk 0:02:25]} 18. Re1 {[%clk 0:02:06]}  Rfd8 {[%clk 0:02:18]} 19. Nd2 {[%clk 0:01:59]}  b5 {[%clk 0:02:09]} 20. Nc3 {[%clk 0:01:54]}  Bxb4 {[%clk 0:02:08]} 21. Bb2 {[%clk 0:01:51]}  Bc5 {[%clk 0:02:01]} 22. Qc1 {[%clk 0:01:48]}  Bd3 {[%clk 0:01:54]} 23. Nf3 {[%clk 0:01:36]}  Nh5 {[%clk 0:01:38]} 24. Ne2 {[%clk 0:01:24]}  Bd6 {[%clk 0:01:31]} 25. Qe3 {[%clk 0:01:12]}  Bxe2 {[%clk 0:01:27]} 26. Rxe2 {[%clk 0:01:12]}  Nf4 {[%clk 0:01:28]} 27. Rc2 {[%clk 0:01:11]}  f6 {[%clk 0:01:26]} 28. Rac1 {[%clk 0:01:10]}  Ra6 {[%clk 0:01:25]} 29. Kh2 {[%clk 0:01:10]}  Rc8 {[%clk 0:01:17]} 30. g3 {[%clk 0:01:10]}  Ne6 {[%clk 0:01:17]} 31. Qb3 {[%clk 0:01:09]}  Qe7 {[%clk 0:01:16]} 32. Nh4 {[%clk 0:01:09]}  Qf7 {[%clk 0:01:07]} 33. Nf5 {[%clk 0:01:09]}  Bf8 {[%clk 0:01:07]} 34. Qf3 {[%clk 0:00:57]}  g6 {[%clk 0:01:04]} 35. Nh4 {[%clk 0:00:49]}  Kh7 {[%clk 0:01:02]} 36. Qe3 {[%clk 0:00:47]}  c5 {[%clk 0:00:57]} 37. f4 {[%clk 0:00:46]}  Nd4 {[%clk 0:00:57]} 38. Qf3 {[%clk 0:00:43]}  Nxf3+ {[%clk 0:00:56]} 39. Nxf3 {[%clk 0:00:43]}  exf4 {[%clk 0:00:55]} 40. gxf4 {[%clk 0:00:44]}  Bd6 {[%clk 0:00:51]} 41. e5 {[%clk 0:00:44]}  fxe5 {[%clk 0:00:52]} 42. fxe5 {[%clk 0:00:38]}  Qxf3 {[%clk 0:00:51]} 43. exd6 {[%clk 0:00:39]}  Rxd6 {[%clk 0:00:51]} 44. Be5 {[%clk 0:00:37]}  Rd3 {[%clk 0:00:50]} 45. Rxc5 {[%clk 0:00:29]}  Rxc5 {[%clk 0:00:50]} 46. Rxc5 {[%clk 0:00:27]}  Qf2+ {[%clk 0:00:50]} 0-1


[Site "https://www.chess.com"]

[Event "Titled Tuesday Blitz May 9 Early 2023"]
[White "Goffredo_Fofi"]
[Black "Balint, Vilmos"]
[BlackFideId "718050"]
[WhiteElo "2549"]
[BlackElo "2034"]
[Result "0-1"]
[Round "10"]
[TimeControl "180+2"]
[Date "2023.05.09"]
[WhiteClock "0:00:00"]
[BlackClock "0:01:06"]

1. d4 {[%clk 0:03:00]}  Nf6 {[%clk 0:02:57]} 2. Nf3 {[%clk 0:03:01]}  e6 {[%clk 0:02:57]} 3. Bf4 {[%clk 0:03:01]}  d5 {[%clk 0:02:57]} 4. e3 {[%clk 0:03:01]}  c5 {[%clk 0:02:57]} 5. c3 {[%clk 0:03:01]}  Qb6 {[%clk 0:02:57]} 6. Qb3 {[%clk 0:02:55]}  c4 {[%clk 0:02:58]} 7. Qc2 {[%clk 0:02:55]}  Bd6 {[%clk 0:02:56]} 8. Bxd6 {[%clk 0:02:52]}  Qxd6 {[%clk 0:02:55]} 9. b3 {[%clk 0:02:53]}  cxb3 {[%clk 0:02:55]} 10. axb3 {[%clk 0:02:54]}  O-O {[%clk 0:02:55]} 11. Bd3 {[%clk 0:02:54]}  h6 {[%clk 0:02:55]} 12. O-O {[%clk 0:02:53]}  Nc6 {[%clk 0:02:52]} 13. c4 {[%clk 0:02:20]}  Nb4 {[%clk 0:02:48]} 14. Qe2 {[%clk 0:02:20]}  Nxd3 {[%clk 0:02:48]} 15. Qxd3 {[%clk 0:02:21]}  dxc4 {[%clk 0:02:49]} 16. bxc4 {[%clk 0:02:22]}  b6 {[%clk 0:02:47]} 17. Nc3 {[%clk 0:02:18]}  Bb7 {[%clk 0:02:47]} 18. Ne5 {[%clk 0:02:13]}  Rfd8 {[%clk 0:02:46]} 19. f4 {[%clk 0:02:10]}  Nd7 {[%clk 0:02:29]} 20. Qe2 {[%clk 0:01:50]}  f6 {[%clk 0:02:18]} 21. Nb5 {[%clk 0:01:50]}  Qb8 {[%clk 0:02:12]} 22. Ng4 {[%clk 0:01:43]}  a6 {[%clk 0:02:09]} 23. Nc3 {[%clk 0:01:42]}  Qc7 {[%clk 0:02:04]} 24. f5 {[%clk 0:01:34]}  exf5 {[%clk 0:02:03]} 25. Rxf5 {[%clk 0:01:35]}  Rac8 {[%clk 0:01:57]} 26. c5 {[%clk 0:01:08]}  bxc5 {[%clk 0:01:56]} 27. d5 {[%clk 0:01:09]}  Nf8 {[%clk 0:01:36]} 28. Rb1 {[%clk 0:01:00]}  Rb8 {[%clk 0:01:34]} 29. e4 {[%clk 0:00:55]}  Bc8 {[%clk 0:01:35]} 30. Rff1 {[%clk 0:00:44]}  Rxb1 {[%clk 0:01:33]} 31. Rxb1 {[%clk 0:00:44]}  Qf4 {[%clk 0:01:28]} 32. Ne3 {[%clk 0:00:35]}  Ng6 {[%clk 0:01:28]} 33. g3 {[%clk 0:00:28]}  Qe5 {[%clk 0:01:28]} 34. Rc1 {[%clk 0:00:25]}  Bh3 {[%clk 0:01:26]} 35. Qf2 {[%clk 0:00:24]}  Qd4 {[%clk 0:01:26]} 36. Nf5 {[%clk 0:00:09]}  Bxf5 {[%clk 0:01:26]} 37. exf5 {[%clk 0:00:09]}  Ne5 {[%clk 0:01:26]} 38. Kg2 {[%clk 0:00:09]}  Ng4 {[%clk 0:01:22]} 39. Qf4 {[%clk 0:00:07]}  Qxf4 {[%clk 0:01:15]} 40. gxf4 {[%clk 0:00:08]}  Ne3+ {[%clk 0:01:15]} 41. Kf3 {[%clk 0:00:09]}  Nxf5 {[%clk 0:01:15]} 42. Ne4 {[%clk 0:00:08]}  Rxd5 {[%clk 0:01:15]} 43. Nxc5 {[%clk 0:00:08]}  a5 {[%clk 0:01:11]} 44. Nb7 {[%clk 0:00:08]}  Rb5 {[%clk 0:01:10]} 45. Rc8+ {[%clk 0:00:06]}  Kh7 {[%clk 0:01:10]} 46. Rc7 {[%clk 0:00:07]}  Nd4+ {[%clk 0:01:10]} 47. Ke4 {[%clk 0:00:07]}  Ne6 {[%clk 0:01:10]} 48. Re7 {[%clk 0:00:07]}  Rxb7 {[%clk 0:01:08]} 49. Rxe6 {[%clk 0:00:05]}  Ra7 {[%clk 0:01:08]} 50. Kf5 {[%clk 0:00:04]}  a4 {[%clk 0:01:08]} 51. Re2 {[%clk 0:00:04]}  a3 {[%clk 0:01:08]} 52. Ra2 {[%clk 0:00:05]}  Ra5+ {[%clk 0:01:08]} 53. Kg4 {[%clk 0:00:05]}  Kg6 {[%clk 0:01:09]} 54. f5+ {[%clk 0:00:05]}  Rxf5 {[%clk 0:01:09]} 55. Rxa3 {[%clk 0:00:05]}  Rb5 {[%clk 0:01:09]} 56. Kf4 {[%clk 0:00:05]}  Rb4+ {[%clk 0:01:09]} 57. Kg3 {[%clk 0:00:05]}  Kg5 {[%clk 0:01:08]} 58. h4+ {[%clk 0:00:04]}  Rxh4 {[%clk 0:01:06]} 59. Ra7 {[%clk 0:00:00]}  g6 {[%clk 0:01:06]} 0-1


[Site "https://www.chess.com"]

[Event "Titled Tuesday Blitz May 9 Early 2023"]
[White "Horak, Martin"]
[Black "Avalos Parra, Joao"]
[WhiteFideId "367095"]
[BlackFideId "3402541"]
[WhiteElo "2091"]
[BlackElo "2173"]
[Result "0-1"]
[Round "10"]
[TimeControl "180+2"]
[Date "2023.05.09"]
[WhiteClock "0:00:00"]
[BlackClock "0:00:08"]

1. d4 {[%clk 0:02:55]}  d5 {[%clk 0:02:59]} 2. c4 {[%clk 0:02:55]}  e6 {[%clk 0:02:59]} 3. Nf3 {[%clk 0:02:54]}  Nf6 {[%clk 0:03:00]} 4. Nc3 {[%clk 0:02:54]}  Bb4 {[%clk 0:03:00]} 5. Qa4+ {[%clk 0:02:54]}  Nc6 {[%clk 0:03:00]} 6. Bg5 {[%clk 0:02:54]}  O-O {[%clk 0:02:29]} 7. e3 {[%clk 0:02:49]}  h6 {[%clk 0:02:30]} 8. Bxf6 {[%clk 0:02:49]}  Qxf6 {[%clk 0:02:31]} 9. a3 {[%clk 0:02:48]}  Bxc3+ {[%clk 0:02:24]} 10. bxc3 {[%clk 0:02:49]}  Ne7 {[%clk 0:02:16]} 11. Be2 {[%clk 0:02:25]}  Ng6 {[%clk 0:02:14]} 12. O-O {[%clk 0:02:23]}  c6 {[%clk 0:02:15]} 13. Rab1 {[%clk 0:02:18]}  e5 {[%clk 0:02:12]} 14. cxd5 {[%clk 0:02:10]}  cxd5 {[%clk 0:02:00]} 15. dxe5 {[%clk 0:02:04]}  Nxe5 {[%clk 0:02:01]} 16. Nxe5 {[%clk 0:02:04]}  Qxe5 {[%clk 0:02:02]} 17. Qd4 {[%clk 0:02:05]}  Qxd4 {[%clk 0:01:59]} 18. cxd4 {[%clk 0:02:04]}  b6 {[%clk 0:01:58]} 19. Rfc1 {[%clk 0:01:55]}  Bf5 {[%clk 0:01:58]} 20. Rb3 {[%clk 0:01:50]}  Rfc8 {[%clk 0:01:59]} 21. Rbc3 {[%clk 0:01:49]}  Rxc3 {[%clk 0:01:59]} 22. Rxc3 {[%clk 0:01:50]}  Rc8 {[%clk 0:01:59]} 23. Rxc8+ {[%clk 0:01:43]}  Bxc8 {[%clk 0:02:00]} 24. Kf1 {[%clk 0:01:36]}  Kf8 {[%clk 0:01:59]} 25. Ke1 {[%clk 0:01:36]}  Ke7 {[%clk 0:01:59]} 26. Kd2 {[%clk 0:01:37]}  Kd6 {[%clk 0:02:00]} 27. Kc3 {[%clk 0:01:38]}  Bd7 {[%clk 0:01:46]} 28. h4 {[%clk 0:01:37]}  g6 {[%clk 0:01:39]} 29. Bd3 {[%clk 0:01:18]}  Be8 {[%clk 0:01:35]} 30. Kb4 {[%clk 0:01:07]}  h5 {[%clk 0:01:34]} 31. Ba6 {[%clk 0:00:59]}  f6 {[%clk 0:01:28]} 32. Bc8 {[%clk 0:00:56]}  a5+ {[%clk 0:01:26]} 33. Kc3 {[%clk 0:00:53]}  b5 {[%clk 0:01:25]} 34. g3 {[%clk 0:00:46]}  Kc7 {[%clk 0:01:22]} 35. Bh3 {[%clk 0:00:44]}  Kc6 {[%clk 0:01:21]} 36. Bf1 {[%clk 0:00:44]}  Kb6 {[%clk 0:01:19]} 37. Bd3 {[%clk 0:00:44]}  Kc6 {[%clk 0:01:16]} 38. f3 {[%clk 0:00:41]}  Kd6 {[%clk 0:01:16]} 39. Bc2 {[%clk 0:00:34]}  Kc6 {[%clk 0:01:14]} 40. e4 {[%clk 0:00:34]}  Kd6 {[%clk 0:01:10]} 41. Bd3 {[%clk 0:00:29]}  Kc6 {[%clk 0:00:41]} 42. e5 {[%clk 0:00:27]}  fxe5 {[%clk 0:00:42]} 43. dxe5 {[%clk 0:00:28]}  Kc5 {[%clk 0:00:42]} 44. f4 {[%clk 0:00:20]}  Bf7 {[%clk 0:00:26]} 45. f5 {[%clk 0:00:16]}  gxf5 {[%clk 0:00:24]} 46. Bxf5 {[%clk 0:00:17]}  d4+ {[%clk 0:00:22]} 47. Kd3 {[%clk 0:00:16]}  Bc4+ {[%clk 0:00:23]} 48. Kd2 {[%clk 0:00:13]}  b4 {[%clk 0:00:23]} 49. axb4+ {[%clk 0:00:13]}  axb4 {[%clk 0:00:24]} 50. Bg6 {[%clk 0:00:12]}  b3 {[%clk 0:00:19]} 51. Bxh5 {[%clk 0:00:12]}  Kb4 {[%clk 0:00:15]} 52. Bg6 {[%clk 0:00:11]}  Ka3 {[%clk 0:00:15]} 53. h5 {[%clk 0:00:10]}  d3 {[%clk 0:00:11]} 54. e6 {[%clk 0:00:07]}  b2 {[%clk 0:00:07]} 55. e7 {[%clk 0:00:04]}  b1=Q {[%clk 0:00:07]} 56. e8=Q {[%clk 0:00:04]}  Qc2+ {[%clk 0:00:08]} 57. Ke3 {[%clk 0:00:05]}  Qe2+ {[%clk 0:00:08]} 58. Kf4 {[%clk 0:00:05]}  Qxe8 {[%clk 0:00:08]} 59. Bxe8 {[%clk 0:00:05]}  d2 {[%clk 0:00:08]} 60. h6 {[%clk 0:00:02]}  d1=Q {[%clk 0:00:08]} 61. Bg6 {[%clk 0:00:00]}  Qd2+ {[%clk 0:00:08]} 0-1


[Site "https://www.chess.com"]